Cogmind - Beta 15 @@@ ROGUE MODE // 2025.08.10 @ 10:38:21 Player: winnking222 Result: Destroyed by G-67 Veteran with Plasma Rifle Performance ------------- Evolutions (6) 3000 Regions Visited (17) 3400 Robots Destroyed (217) 1085 Value Destroyed (8636) 8636 Prototype IDs (52) 1040 Alien Tech Used (0) 0 Bonus (2797) 2797 TOTAL SCORE: 19958 Bonus ------- High Alert Combat Kills 165 Follower Combat Kills 1574 Aligned with FarCom 300 Met Data Miner 300 Met R17 at Cetus 500 Friendly Fire -42 Cogmind --------- Core Integrity 0/1150 Matter 161/300 Energy 100/100 System Corruption 6% Temperature Cool (12) Movement Core (50) Location -4/Factory Parts ------- > --- POWER (2) -------- (None) > --- PROPULSION (4) --- (None) > --- UTILITY (10) ----- (None) > --- WEAPON (3) ------- Heavy Flail > --- INVENTORY (5) ---- Advanced Heat Sink Advanced Visual Processing Unit Improved Medium Armor Plating Advanced Variable Charge Gun Peak State ------------ > --- POWER ------------ Particle Reactor Quantum Reactor > --- PROPULSION ------- Centrium Heavy Treads Centrium Heavy Treads > --- UTILITY ---------- Advanced Heat Sink Advanced Heat Sink Improved Cooling System Advanced Cooling System High-capacity Storage Unit Armor Integrity Analyzer Centrium Medium Armor Plating Centrium Medium Armor Plating Medium Regenerative Plating Advanced System Shield > --- WEAPON ----------- Advanced Variable Charge Gun Quantum Rifle Quantum Rifle > --- INVENTORY -------- Fusion Reactor Fusion Reactor Centrium Heavy Treads High-capacity Matter Pod Layered Heavy Armor Plating Centrium Medium Armor Plating Improved Hacking Suite Advanced System Restoration Module Advanced System Restoration Module Advanced Variable Charge Gun Advanced Variable Charge Gun Autogun Railgun Advanced KE Penetrator Scatter Rocket Array Heavy Flail [Rating: 144] Favorites ----------- Power Fusion Reactor Engine Improved Ion Engine Power Core Neutrino Core Reactor Fusion Reactor Propulsion Armored Huge Wheel Treads Centrium Heavy Treads Leg Myomer Leg Wheel Armored Huge Wheel Utility Advanced Heat Sink Device Advanced Heat Sink Storage High-capacity Storage Unit Processor Core Analyzer Hackware System Shield Protection Medium Regenerative Plating Weapon Improved Heavy Laser Energy Gun Improved Heavy Laser Energy Cannon Heavy Ion Cannon Ballistic Gun Assault Rifle Ballistic Cannon Magnetic Acceleration Cannon Launcher Rocket Launcher Impact Weapon Heavy Flail Build | -11 -10 -10 -10 -9 -8 -7 -7 -7 -7 -6 -6 -5 -5 -5 -5 -5 -4 ------- Run | Yrd Mat Min Exi Min Mat Fac Low Low Dat Pro Fac Fac Ext Cet Arc Hub Fac Slots Evolved 12 | . . . . . 4 2 . . . . 2 2 . . . . 2 Power 1 | . . . . . . 1 . . . . . . . . . . . Propulsion 2 | . . . . . . . . . . . . 2 . . . . . Utility 8 | . . . . . 4 . . . . . 2 . . . . . 2 Weapon 1 | . . . . . . 1 . . . . . . . . . . . Parts Attached 198 | 7 7 3 4 . 15 18 4 3 . 14 34 13 35 12 6 1 22 Power 27 | 1 2 . . . 1 4 1 . . 2 3 3 4 2 1 . 3 Engine 15 | 1 2 . . . 1 4 1 . . 1 2 2 . . . . 1 Core 3 | . . . . . . . . . . . . 1 2 . . . . Reactor 9 | . . . . . . . . . . 1 1 . 2 2 1 . 2 Propulsion 35 | 2 2 . 1 . 2 2 . 1 . 3 11 . 7 2 . . 2 Treads 8 | 2 2 . . . . . . . . . . . 1 2 . . 1 Leg 8 | . . . . . 1 . . . . 1 1 . 5 . . . . Wheel 19 | . . . 1 . 1 2 . 1 . 2 10 . 1 . . . 1 Hover . | . . . . . . . . . . . . . . . . . . Flight . | . . . . . . . . . . . . . . . . . . Utility 80 | 2 . 1 3 . 8 7 3 . . 4 12 6 16 4 3 1 10 Device 38 | 1 . 1 . . 4 3 1 . . 1 5 3 10 2 2 1 4 Storage 4 | 1 . . 1 . . . . . . 1 . . 1 . . . . Processor 14 | . . . 2 . . 3 . . . 1 3 2 1 1 . . 1 Hackware 3 | . . . . . . . . . . . 1 . 1 . . . 1 Protection 21 | . . . . . 4 1 2 . . 1 3 1 3 1 1 . 4 Artifact . | . . . . . . . . . . . . . . . . . . Weapon 56 | 2 3 2 . . 4 5 . 2 . 5 8 4 8 4 2 . 7 Energy Gun 29 | 1 1 . . . 2 3 . . . 3 6 1 6 3 2 . 1 Energy Cannon 8 | . . . . . 2 . . 1 . 1 . . . . . . 4 Ballistic Gun 13 | 1 2 2 . . . . . . . 1 . 3 1 1 . . 2 Ballistic Cannon 2 | . . . . . . 1 . . . . . . 1 . . . . Launcher 3 | . . . . . . . . 1 . . 2 . . . . . . Special Weapon . | . . . . . . . . . . . . . . . . . . Impact Weapon 1 | . . . . . . 1 . . . . . . . . . . . Slashing Weapon . | . . . . . . . . . . . . . . . . . . Piercing Weapon . | . . . . . . . . . . . . . . . . . . Special Melee Weapon . | . . . . . . . . . . . . . . . . . . Unidentified Prototypes 19 | . . 1 . . 1 2 . . . . 5 . 3 4 . . 3 Corrupted Parts 6 | . . . . . . . . . . 2 . . 4 . . . . System Corruption 36 | . . . . . . . . . . 7 . . 29 . . . . Parts Lost 42 | . 1 . . . 2 . 3 1 . 7 2 9 2 2 . . 13 Power 8 | . . . . . . . 1 . . 2 . 3 . . . . 2 Propulsion 9 | . . . . . 1 . . 1 . 1 1 . 1 2 . . 2 Utility 15 | . . . . . . . 2 . . 2 1 2 1 . . . 7 Weapon 10 | . 1 . . . 1 . . . . 2 . 4 . . . . 2 Highest Loss Streak 7 | . 1 . . . 1 . 3 1 . 5 2 4 1 2 . . 7 To Critical Strikes 2 | . . . . . . . . . . . . . 1 1 . . . Average Backups 12 | 3 7 8 7 9 13 13 11 12 12 7 14 13 13 15 17 18 15 Power 1 | . 1 1 1 1 1 . . . . . 1 1 1 2 2 2 1 Propulsion . | 2 1 1 1 1 . . 1 . . . . . . . 1 1 1 Utility 5 | . 1 3 2 4 7 8 6 6 7 4 3 6 5 8 7 8 5 Weapon 5 | . 3 3 3 3 5 4 4 5 5 2 8 5 5 4 7 7 7 Tool/Special . | . . . . . . . . . . . . . . . . . . Unused Backups 43 | 1 3 . 1 . 5 1 . . . . 12 1 8 1 1 . 9 Power 7 | . 1 . . . 1 . . . . . 2 . 1 . . . 2 Propulsion 2 | 1 1 . . . . . . . . . . . . . . . . Utility 12 | . . . 1 . . 1 . . . . 2 1 2 1 . . 4 Weapon 22 | . 1 . . . 4 . . . . . 8 . 5 . 1 . 3 Tool/Special . | . . . . . . . . . . . . . . . . . . Average Slot Usage (%) 88 | . 99 99 98 100 94 89 87 89 92 54 96 86 90 76 88 88 82 Engine 5 | . 14 14 14 14 9 14 14 15 15 7 . 4 1 . . . . Reactor 5 | . . . . . . . . . . 1 11 5 6 11 11 11 9 Treads 5 | . 28 28 19 14 7 . . . . . . . . 8 11 11 9 Leg 1 | . . . . . 1 1 . . . . . . 5 1 . . . Wheel 6 | . . . 8 14 8 7 7 6 7 12 9 11 8 1 . . . Device 14 | . 14 13 6 . 16 14 10 15 15 8 14 16 16 13 17 17 22 Storage 6 | . 14 14 14 14 9 7 7 7 7 3 6 5 5 5 5 5 4 Processor 8 | . . . 6 14 9 8 15 15 15 3 12 11 10 2 5 5 1 Hackware 3 | . . . . . . . . . . . 5 5 5 5 5 5 4 Protection 7 | . . . . . 14 13 6 7 7 5 11 4 5 6 10 11 14 Energy Gun 11 | . 3 7 . . 2 4 23 19 23 7 19 12 8 16 17 17 4 Energy Cannon 1 | . . . . . 14 12 . . . . . . . . . . 3 Ballistic Gun 5 | . 24 20 28 28 . . . . . 1 . 3 7 . . . 5 Peak Build Rating 144 | 7 10 20 20 20 40 60 60 61 60 66 80 89 109 131 132 131 144 Average Rating 72 | 6 8 11 17 19 36 48 57 58 60 58 73 84 95 123 130 130 129 On Entrance 59 | . 7 10 20 19 20 39 60 60 60 60 53 80 88 108 131 130 131 Naked Turns 39 | . . . . . . . . . . 2 . . . . . . 37 Heaviest Build 160 | 15 18 19 53 53 75 90 83 84 82 93 93 96 96 160 115 115 132 Greatest Support 160 | 40 40 40 40 10 20 32 28 28 28 32 32 56 100 160 160 160 160 Greatest Overweight (x) 26 | 3 . . 5 5 17 4 2 2 2 26 9 1 3 5 . . . Average Overweight (x) 1 | . . . 2 5 6 2 2 2 2 2 3 1 . 1 . . . Largest Inventory Capacity 20 | 8 8 8 20 20 20 20 20 20 20 20 20 20 20 20 20 20 20 Average Capacity 18 | 7 8 8 13 20 20 20 20 20 20 11 20 20 20 20 20 20 19 Most Carried 20 | 5 8 8 14 19 20 20 20 19 17 17 20 20 20 20 20 20 20 Average Carried 16 | 3 7 8 9 14 19 19 17 17 17 9 19 19 19 17 19 20 16 Final Capacity 20 | 8 8 8 20 20 20 20 20 20 20 20 20 20 20 20 20 20 5 Final Carried 20 | 4 8 8 14 19 19 20 17 17 17 16 20 20 20 20 20 20 4 Class Distribution -------------------- 32% | Mutant 21% | Scavenger-Tank 21% | Scavenger-Gunner 17% | Gunner 3% | Scavenger-Mutant Dominant Class ---------------- Mutant | -10/Materials Mutant | -10/Mines Mutant | -10/Exiles Mutant | -9/Mines Mutant | -8/Materials Mutant | -7/Factory Gunner | -7/Lower Caves Gunner | -7/Lower Caves Gunner | -7/Data Miner Mutant | -6/Proximity Caves Gunner | -6/Factory Gunner | -5/Factory Scavenger-Gunner | -5/Extension Scavenger-Tank | -5/Cetus Scavenger-Tank | -5/Archives Scavenger-Tank | -5/Hub_04(d) Scavenger-Tank | -4/Factory Resources | -11 -10 -10 -10 -9 -8 -7 -7 -7 -7 -6 -6 -5 -5 -5 -5 -5 -4 ----------- Run | Yrd Mat Min Exi Min Mat Fac Low Low Dat Pro Fac Fac Ext Cet Arc Hub Fac Matter Collected 4717 | 309 209 40 40 112 360 120 296 127 . 319 611 322 1066 238 97 16 435 Remotely . | . . . . . . . . . . . . . . . . . . Salvage Created 10982 | 153 252 . . 350 943 593 349 223 . 485 2478 929 1615 440 704 263 1205 Parts 470 | 17 28 . . 13 52 35 15 8 . 18 109 41 40 23 26 9 36 Haulers Intercepted 6 | . . . . . 3 . . . . . 3 . . . . . . Recyclers Shooed 7 | . . . . . 1 . . . . . 2 1 2 . . . 1 Parts Field Recycled . | . . . . . . . . . . . . . . . . . . Retrieved Matter . | . . . . . . . . . . . . . . . . . . Parts Self-Destructed 65 | . . . . . . . 19 7 . 39 . . . . . . . Prevented 13 | . . . . . . . . 1 . 12 . . . . . . . Kills | -11 -10 -10 -10 -9 -8 -7 -7 -7 -7 -6 -6 -5 -5 -5 -5 -5 -4 ------- Run | Yrd Mat Min Exi Min Mat Fac Low Low Dat Pro Fac Fac Ext Cet Arc Hub Fac Combat Hostiles Destroyed 138 | . 11 . . 3 12 7 8 4 . 8 29 12 14 8 4 4 14 Guns 103 | . 11 . . 3 . 2 7 2 . 7 23 11 13 8 3 4 9 Cannons 20 | . . . . . 12 5 . 1 . 1 . . . . . . 1 AOE 8 | . . . . . . . . 1 . . 6 1 . . . . . Classes Destroyed 18 | 1 4 . . 1 4 2 1 . . 1 2 1 1 . . . . Worker 9 | . 1 . . . . . . . . . 7 1 . . . . . Builder 9 | . . . . . 2 4 . . . . 2 1 . . . . . Tunneler 10 | 8 . . . . 1 . . . . . 1 . . . . . . Hauler 6 | . . . . . 3 . . . . . 3 . . . . . . Recycler 18 | . . . . 4 2 1 . . . . 4 1 5 . . . 1 Mechanic 1 | . . . . . . . . . . . . 1 . . . . . Operator 10 | . . . . . . . . . . . 1 . . . 9 . . Drone 3 | . . . . . . . . . . 2 . . . 1 . . . Watcher 15 | . 1 . . . 4 2 . . . . 4 1 1 . . 1 1 Swarmer 24 | . 9 . . 1 3 . 4 . . 3 1 . . 3 . . . Grunt 42 | . 2 . . 2 4 2 3 2 . 2 13 3 7 . . . 2 Brawler 4 | . . . . . . . . . . . 2 1 . . . . 1 Duelist 4 | . . . . . 1 . . 1 . . 2 . . . . . . Sentry 16 | . . . . . . 1 . . . . . 2 4 . 4 1 4 Specialist 10 | . . . . . 4 . . . . . 2 4 . . . . . Hunter 7 | . . . . . . . . . . . . . 2 . . 1 4 Programmer 24 | . . . . . . 4 . . . 1 9 2 1 2 . 2 3 Behemoth 2 | . . . . . . . 1 1 . . . . . . . . . Cetus Guard 3 | . . . . . . . . . . . . . . 3 . . . Savage 1 | . . . . . . . . . . . . . 1 . . . . Best Kill Streak 9 | 3 7 . . 2 5 5 4 3 . 3 9 8 4 3 5 2 4 Combat Bots Only 6 | . 6 . . 2 3 1 4 3 . 3 5 5 4 3 1 2 4 Max Kills in Single Turn 4 | 1 1 . . 1 2 2 1 1 . 1 4 3 1 1 1 2 2 Gunslinging 1 | . . . . . . . . . . . . . . . . 1 1 Exploded 2 | . . . . . . . . 1 . . 2 1 . . . . . Melee . | . . . . . . . . . . . . . . . . . . Uniques/NPCs Destroyed . | . . . . . . . . . . . . . . . . . . Combat | -11 -10 -10 -10 -9 -8 -7 -7 -7 -7 -6 -6 -5 -5 -5 -5 -5 -4 -------- Run | Yrd Mat Min Exi Min Mat Fac Low Low Dat Pro Fac Fac Ext Cet Arc Hub Fac Hostile Shots Fired 1107 | . 79 . . 1 48 47 53 36 . 88 91 83 44 117 21 57 342 Missed 323 | . 17 . . 1 16 17 12 18 . 21 27 20 10 46 5 12 101 Hits 784 | . 62 . . . 32 30 41 18 . 67 64 63 34 71 16 45 241 Melee 13 | . . . . . 1 . . . . . 3 . . . . . 9 Projectile 771 | . 62 . . . 31 30 41 18 . 67 61 63 34 71 16 45 232 AOE 3 | . . . . . . . . . . . . 2 . . . . 1 Critical Strikes 43 | . . . . . . 5 . 2 . 4 3 1 3 5 . 2 18 Actively Blocked 1 | . . . . . . . . . . 1 . . . . . . . Part Disruptions 3 | . . . . . . . . . . 1 . 2 . . . . . Damage Taken 16238 | . 632 . . . 375 461 822 322 . 1345 1206 2307 696 1390 425 734 5523 Core 2328 | . 230 . . . 33 26 39 13 . 133 138 290 75 126 28 41 1156 Absorbed by Shields 228 | . . . . . . . . . . . . 161 67 . . . . Reduced by Siege Mode 307 | . . . . . . . . . . . . . . 18 28 27 234 Redirected to Shielding 66 | . . . . . 20 . . . . 46 . . . . . . . Regen/Repaired (Parts) 999 | . . . . . . . . . . . 189 96 63 61 76 118 396 Core Remaining (%) 66 | 100 . . . 8 94 . . . . 69 83 . . . . 44 . Volleys Fired 596 | 13 28 . . 12 59 58 16 17 . 27 94 40 67 36 48 16 65 Largest 3 | 2 2 . . 2 2 3 3 3 . 3 3 3 3 3 3 3 3 Hottest 574 | 70 70 . . 53 130 210 210 210 . 210 200 210 243 320 574 268 428 Shots Fired 1493 | 26 55 . . 24 118 127 48 50 . 49 264 114 189 64 134 48 183 Gun 1218 | 26 55 . . 24 8 30 48 39 . 43 259 114 188 64 134 48 138 Cannon 265 | . . . . . 110 97 . 6 . 6 . . 1 . . . 45 Launcher 10 | . . . . . . . . 5 . . 5 . . . . . . Special . | . . . . . . . . . . . . . . . . . . Kinetic 281 | 13 50 . . 24 . . . . . . . 44 83 12 . . 55 Thermal 1116 | 13 4 . . . 118 127 48 39 . 43 259 70 95 52 134 48 66 Explosive 10 | . . . . . . . . 5 . . 5 . . . . . . Electromagnetic 86 | . 1 . . . . . . 6 . 6 . . 11 . . . 62 Robot Hit Streak 29 | 11 14 . . 6 14 7 7 20 . 8 9 21 15 11 28 10 29 Robot Miss Streak 7 | 2 5 . . 1 6 4 3 4 . 5 4 7 3 6 5 3 4 Penetration Max 1 | . . . . . . . . . . . . . 1 . . . 1 Secondary Targets 20 | . 3 . . . . 1 4 . . 1 3 1 2 2 . 1 2 Max Gunslinging Chain 1 | . 1 . . . . 1 1 . . 1 1 1 1 1 . 1 1 Shots Hit Robots 828 | 20 20 . . 16 68 58 28 25 . 27 124 79 107 36 72 25 123 Core Hits 392 | 8 14 . . 9 29 20 14 13 . 16 79 44 51 16 32 10 37 Critical Kills 5 | . . . . . . . . . . . . . . 3 . . 2 Critical Parts Destroyed 1 | . . . . . . . . . . . . . . . . . 1 Critical Strikes 31 | . . . . . . . 5 3 . 3 6 1 6 3 . . 4 Burn 23 | . . . . . . . 5 2 . 3 6 1 6 . . . . Destroy 6 | . . . . . . . . . . . . . . 3 . . 3 Corrupt 2 | . . . . . . . . 1 . . . . . . . . 1 Melee Attacks 23 | . . . . . . . . . . . 19 3 . . . . 1 Impact 23 | . . . . . . . . . . . 19 3 . . . . 1 Slashing . | . . . . . . . . . . . . . . . . . . Piercing . | . . . . . . . . . . . . . . . . . . Sneak Attacks 1 | . . . . . . . . . . . . . . . . . 1 Combat Hostiles . | . . . . . . . . . . . . . . . . . . Follow-up Attacks . | . . . . . . . . . . . . . . . . . . Damage Inflicted 24734 | 258 329 . . 303 1877 1745 648 789 . 826 4731 2585 2901 1116 2205 876 3545 Guns 18425 | 258 261 . . 303 40 355 648 407 . 721 3306 2033 2901 1116 2205 876 2995 Cannons 3876 | . . . . . 1837 1390 . 96 . 105 . . . . . . 448 Explosions 2328 | . 65 . . . . . . 286 . . 1425 552 . . . . . Melee 102 | . . . . . . . . . . . . . . . . . 102 Ramming 3 | . 3 . . . . . . . . . . . . . . . . Kinetic 3879 | 110 236 . . 303 . . . . . . . 568 1415 244 . . 1003 Thermal 18589 | 148 90 . . . 1877 1745 648 457 . 721 3973 2017 1333 872 2205 876 1627 Explosive 994 | . . . . . . . . 236 . . 758 . . . . . . Electromagnetic 1167 | . . . . . . . . 96 . 105 . . 153 . . . 813 Impact 102 | . . . . . . . . . . . . . . . . . 102 Slashing . | . . . . . . . . . . . . . . . . . . Piercing . | . . . . . . . . . . . . . . . . . . Highest Corruption 14 | . . . . . . 3 3 3 3 11 4 14 14 1 1 10 7 Average Corruption 4 | . . . . . . 2 3 3 3 9 1 6 7 1 1 9 4 Corruption Purged 53 | . . . . . . . . . . . . . 43 . 1 . 9 Corruption Blocked . | . . . . . . . . . . . . . . . . . . Effects 189 | . . . . . . 7 14 19 4 52 27 11 34 1 5 4 11 Message Errors 45 | . . . . . . 2 2 4 2 20 4 3 4 1 1 . 2 Matter Fused 48 | . . . . . . 2 4 5 1 11 9 1 9 . 2 1 3 Heat Flow Errors 14 | . . . . . . . 2 . . 5 . 1 4 . . 1 1 Energy Discharges 18 | . . . . . . 1 2 3 . 3 2 . 4 . 1 . 2 Parts Rejected 1 | . . . . . . . . . . . . . . . . 1 . Parts Fused 4 | . . . . . . 1 . 1 . . 1 1 . . . . . Data Loss (minor) 29 | . . . . . . . 1 2 1 7 5 4 5 . 1 1 2 Data Loss (major) 9 | . . . . . . . 1 1 . 1 1 . 5 . . . . Misfires 8 | . . . . . . 1 1 2 . . 3 . 1 . . . . Alerts 5 | . . . . . . . . . . 3 1 . 1 . . . . Weapon Failures 8 | . . . . . . . 1 1 . 2 1 1 1 . . . 1 Overload Shots 26 | . . . . . . . . . . 9 9 . . 1 4 . 3 Effects 7 | . . . . . . . . . . 3 3 . . . 1 . . Energy Bleed 3 | . . . . . . . . . . 1 2 . . . . . . Heat Surge 4 | . . . . . . . . . . 2 1 . . . 1 . . Overflow Damage 656 | . 19 . . . 85 111 . 4 . . 83 276 . . . . 78 Projectiles 202 | . . . . . 85 111 . . . . . . . . . . 6 Explosions 382 | . 19 . . . . . . 4 . . 83 276 . . . . . Melee 72 | . . . . . . . . . . . . . . . . . 72 Knockbacks 1 | . . . . . . . . . . . . . . . . . 1 Impact 1 | . . . . . . . . . . . . . . . . . 1 Kinetic . | . . . . . . . . . . . . . . . . . . Secondary . | . . . . . . . . . . . . . . . . . . Self-Inflicted Damage 547 | . 130 . . . . . . 39 . . 18 360 . . . . . Shots 8 | . 2 . . . . . . 1 . . 1 4 . . . . . Rammed 1 | . 1 . . . . . . . . . . . . . . . . Targets Rammed 1 | . 1 . . . . . . . . . . . . . . . . Kicked . | . . . . . . . . . . . . . . . . . . Crushed . | . . . . . . . . . . . . . . . . . . Highest Temperature 555 | 54 45 . . . 6 150 375 36 . 534 455 219 555 118 351 209 412 Average Temperature 85 | 21 13 . . . 3 44 131 13 . 108 116 70 116 46 38 59 97 Received Heat Transfer 2019 | . 30 . . . 63 24 105 99 . 403 360 202 156 27 63 9 478 Effects 13 | . . . . . . . 1 . . 2 5 . 3 . . . 2 Shutdowns 5 | . . . . . . . . . . 1 . . 3 . . . 1 Interference 5 | . . . . . . . . . . . 5 . . . . . . Matter Decay 2 | . . . . . . . . . . 1 . . . . . . 1 Damage (minor) 1 | . . . . . . . 1 . . . . . . . . . . Siege Activations 13 | . . . . . . . . . . . . . . 2 5 1 5 Total Turns 572 | . . . . . . . . . . . . . . 94 296 17 165 Longest Duration 167 | . . . . . . . . . . . . . . 80 167 17 57 Martial Activations . | . . . . . . . . . . . . . . . . . . Shielding Activations . | . . . . . . . . . . . . . . . . . . Robots Disrupted 1 | . . . . . . . . . . . . . . . . . 1 Combat Hostiles 1 | . . . . . . . . . . . . . . . . . 1 Robots Corrupted 3 | . . . . . . . . . . . . . . . . . 3 Combat Hostiles 2 | . . . . . . . . . . . . . . . . . 2 Parts Fried 8 | . . . . . . . . . . . . . . . . . 8 Impact Corruptions 3 | . . . . . . . . . . . . . . . . . 3 Robots Melted 6 | . . . . . . . 1 . . . . 1 1 . 1 . 2 Combat Hostiles 5 | . . . . . . . 1 . . . . . 1 . 1 . 2 Parts Melted 60 | . . . . . 2 4 2 . . 4 14 6 8 3 5 5 7 Heat Transferred 26904 | 444 174 . . . 2590 2294 1406 827 . 1403 5656 2806 2479 1036 2790 999 2000 Parts Sabotaged . | . . . . . . . . . . . . . . . . . . Parts Stolen . | . . . . . . . . . . . . . . . . . . Parts Stripped . | . . . . . . . . . . . . . . . . . . Power Chain Reactions 1 | . . . . . . . . 1 . . . . . . . . . Alert | -11 -10 -10 -10 -9 -8 -7 -7 -7 -7 -6 -6 -5 -5 -5 -5 -5 -4 ------- Run | Yrd Mat Min Exi Min Mat Fac Low Low Dat Pro Fac Fac Ext Cet Arc Hub Fac Maximum Alert Level 2 | . 1 . . . . . . . . . 2 1 1 . . . 1 Low Security (%) 70 | 100 91 100 . 100 100 100 . . . . 26 49 48 100 100 100 96 Level 1 17 | . 8 . . . . . . . . . 22 50 51 . . . 3 Level 2 11 | . . . . . . . . . . . 51 . . . . . . Level 3 . | . . . . . . . . . . . . . . . . . . Level 4 . | . . . . . . . . . . . . . . . . . . Level 5 . | . . . . . . . . . . . . . . . . . . High Security . | . . . . . . . . . . . . . . . . . . Max Security . | . . . . . . . . . . . . . . . . . . Peak Influence 580 | 10 234 40 . 81 180 78 . . . . 580 326 356 124 45 62 227 Initial 283 | . . 40 . . 13 70 . . . . 150 283 156 124 13 . 7 Average 136 | 1 70 2 . 10 79 22 . . . . 347 183 154 23 5 20 67 Influence Increases 6478 | 40 414 . . 225 437 299 190 100 . 717 1387 525 744 423 218 156 603 Destroy 0b10 Robot/C 3400 | . 220 . . 160 240 140 160 80 . 440 620 240 400 260 80 80 280 Destroy 0b10 Robot/NC 425 | 40 10 . . 20 60 35 . . . 20 115 25 30 10 45 5 10 Destroy Leader 724 | . 42 . . 30 64 54 30 20 . 60 176 62 52 10 . 32 92 Allied During Kill 479 | . . . . 14 . 8 . . . 167 23 . 211 56 . . . Successful Hack 160 | . 27 . . . 5 29 . . . . 84 . . 9 . . 6 Disable Machine 450 | . 60 . . . 30 . . . . . 135 105 30 15 75 . . Anti-Garrison Action 150 | . . . . . . . . . . . . . . . . . 150 Destroy Structure 405 | . 40 . . 1 38 18 . . . . 84 78 6 48 18 24 50 Advance Influence 150 | . . . . . . . . . . . 150 . . . . . . Lose Combat Pursuer 135 | . 15 . . . . 15 . . . 30 . 15 15 15 . 15 15 Influence Decreases 6392 | 40 308 106 . 191 315 455 176 114 . 717 808 784 841 613 251 140 533 Entered New Map 765 | . . 66 . . 21 86 . 4 . . . 296 164 99 20 . 9 Time Decay 4531 | 40 298 40 . 131 281 321 146 110 . 427 748 398 514 302 231 140 404 Lost Part 373 | . 10 . . . 13 . 30 . . 50 20 90 20 20 . . 120 Lost Ally 723 | . . . . 60 . 48 . . . 240 40 . 143 192 . . . Squads Dispatched 53 | . 1 . . . 4 3 . . . 1 21 7 4 . . 2 10 Investigation 13 | . 1 . . . 2 . . . . . 5 1 2 . . . 2 Extermination 16 | . . . . . . 2 . . . . 8 3 . . . 1 2 Reinforcement 18 | . . . . . 2 1 . . . . 7 2 2 . . 1 3 Assault 4 | . . . . . . . . . . 1 1 . . . . . 2 Garrison 2 | . . . . . . . . . . . . 1 . . . . 1 Intercept . | . . . . . . . . . . . . . . . . . . Searches Triggered . | . . . . . . . . . . . . . . . . . . Data Miner Redirects 4 | . . . . . . . . . . . 2 . . . . . 2 Construction Impeded 3 | . . . . . . . . . . . 1 . 1 . . . 1 Haulers Reinforced 1 | . . . . . . . . . . . 1 . . . . . . Active Scanning Responses . | . . . . . . . . . . . . . . . . . . Cargo Convoy Interrupts 1 | . . . . . . . . . . . 1 . . . . . . Stealth | -11 -10 -10 -10 -9 -8 -7 -7 -7 -7 -6 -6 -5 -5 -5 -5 -5 -4 --------- Run | Yrd Mat Min Exi Min Mat Fac Low Low Dat Pro Fac Fac Ext Cet Arc Hub Fac Distress Signals 13 | . . . . . 2 1 . . . . 5 . . 2 . . 3 Communications Jammed 27 | . . . . . . . . . . . 26 1 . . . . . Distress Signals 26 | . . . . . . . . . . . 26 . . . . . . Times Spotted 269 | . 18 . . 7 22 17 8 4 . 23 39 18 24 20 18 10 41 Peak Tracking Total 15 | . 6 . . 3 4 3 4 3 . 8 6 5 5 5 2 5 15 Tactical Retreats 11 | . 3 . . . . 1 . . . 2 . 1 1 1 . 1 1 Traps | -11 -10 -10 -10 -9 -8 -7 -7 -7 -7 -6 -6 -5 -5 -5 -5 -5 -4 ------- Run | Yrd Mat Min Exi Min Mat Fac Low Low Dat Pro Fac Fac Ext Cet Arc Hub Fac Traps Triggered 13 | . . . . . 3 2 . . . . 3 2 2 . . . 1 Indirectly . | . . . . . . . . . . . . . . . . . . Trap Hack Attempts . | . . . . . . . . . . . . . . . . . . Triggered . | . . . . . . . . . . . . . . . . . . Disarmed . | . . . . . . . . . . . . . . . . . . Reprogrammed . | . . . . . . . . . . . . . . . . . . Reused . | . . . . . . . . . . . . . . . . . . Traps Extracted . | . . . . . . . . . . . . . . . . . . Installed . | . . . . . . . . . . . . . . . . . . Triggered . | . . . . . . . . . . . . . . . . . . Machines | -11 -10 -10 -10 -9 -8 -7 -7 -7 -7 -6 -6 -5 -5 -5 -5 -5 -4 ---------- Run | Yrd Mat Min Exi Min Mat Fac Low Low Dat Pro Fac Fac Ext Cet Arc Hub Fac Machines Disabled 31 | . 4 . . . 2 . . . . . 9 7 2 1 5 . 1 Max in Single Turn 5 | . 4 . . . 1 . . . . . 4 5 1 1 2 . 1 Garrison Access 4 | . . . . . . . . . . . 2 1 . . . . 1 Energy Cycler 1 | . . . . . . . . . . . . . 1 . . . . Machines Repaired . | . . . . . . . . . . . . . . . . . . Machines Dismantled . | . . . . . . . . . . . . . . . . . . Machines Sabotaged . | . . . . . . . . . . . . . . . . . . Overloaded Fab Kills . | . . . . . . . . . . . . . . . . . . Hacking | -11 -10 -10 -10 -9 -8 -7 -7 -7 -7 -6 -6 -5 -5 -5 -5 -5 -4 --------- Run | Yrd Mat Min Exi Min Mat Fac Low Low Dat Pro Fac Fac Ext Cet Arc Hub Fac Machines Accessed 50 | . 4 . 2 . 4 5 1 . 4 . 18 3 2 3 . . 4 Terminals 29 | . 4 . . . 3 3 . . . . 10 1 2 3 . . 3 Fabricators 5 | . . . . . . 1 . . . . 3 . . . . . 1 Repair Stations 3 | . . . . . . . . . . . 2 1 . . . . . Recycling Units . | . . . . . . . . . . . . . . . . . . Scanalyzers 3 | . . . . . 1 1 . . . . 1 . . . . . . Garrison Access 3 | . . . . . . . . . . . 2 1 . . . . . Total Hacks 140 | . 10 . 5 . 14 7 1 . 29 . 46 9 3 6 . . 10 Successful 86 | . 6 . 5 . 7 5 1 . 29 . 24 4 . 2 . . 3 Failed 54 | . 4 . . . 7 2 . . . . 22 5 3 4 . . 7 Catastrophic 12 | . . . . . . . . . . . 7 . 1 2 . . 2 Database Lockouts . | . . . . . . . . . . . . . . . . . . Manual 52 | . 9 . 4 . 7 4 . . . . 18 3 3 . 3 . 1 Terminals 62 | . 10 . . . 7 4 . . . . 23 3 3 6 . . 6 Fabricators 16 | . . . . . . 1 . . . . 11 . . . . . 4 Repair Stations 9 | . . . . . . . . . . . 4 5 . . . . . Recycling Units . | . . . . . . . . . . . . . . . . . . Scanalyzers 14 | . . . . . 7 2 . . . . 5 . . . . . . Garrison Access 4 | . . . . . . . . . . . 3 1 . . . . . Terminal Hacks 43 | . . . 5 . . . 1 . 29 . 5 . . 2 . . 1 Record 16 | . . . 4 . . . . . 11 . . . . 1 . . . Part Schematic 10 | . . . . . . . . . 9 . 1 . . . . . . Robot Schematic 6 | . . . . . . . . . 6 . . . . . . . . Prototype ID Bank 3 | . . . . . . . . . 3 . . . . . . . . Open Door 2 | . . . . . . . 1 . . . . . . 1 . . . Open DSF 1 | . . . . . . . . . . . 1 . . . . . . Level Access Points 1 | . . . . . . . . . . . . . . . . . 1 Branch Access Points 1 | . . . . . . . . . . . 1 . . . . . . Locate Traps 1 | . . . . . . . . . . . 1 . . . . . . Hauler Manifests 1 | . . . . . . . . . . . 1 . . . . . . Proto ID Catalog 1 | . . . 1 . . . . . . . . . . . . . . Fabricator Hacks 10 | . . . . . . 1 . . . . 7 . . . . . 2 Network Status 1 | . . . . . . . . . . . 1 . . . . . . Load Schematic 4 | . . . . . . . . . . . 3 . . . . . 1 Build 5 | . . . . . . 1 . . . . 3 . . . . . 1 Repair Station Hacks 3 | . . . . . . . . . . . 2 1 . . . . . Scan Component 2 | . . . . . . . . . . . 1 1 . . . . . Repair 1 | . . . . . . . . . . . 1 . . . . . . Recycling Unit Hacks . | . . . . . . . . . . . . . . . . . . Scanalyzer 11 | . . . . . 5 2 . . . . 4 . . . . . . Insert Component 6 | . . . . . 2 1 . . . . 3 . . . . . . Analyze 5 | . . . . . 3 1 . . . . 1 . . . . . . Garrison Access Hacks 3 | . . . . . . . . . . . 2 1 . . . . . Seal Access 3 | . . . . . . . . . . . 2 1 . . . . . Unauthorized Hacks 16 | . 6 . . . 2 2 . . . . 4 2 . . . . . Terminals 16 | . 6 . . . 2 2 . . . . 4 2 . . . . . Assimilate 2 | . 1 . . . . . . . . . 1 . . . . . . Botnet 11 | . 3 . . . 2 2 . . . . 3 1 . . . . . Operators 1 | . 1 . . . . . . . . . . . . . . . . Skim 2 | . 1 . . . . . . . . . . 1 . . . . . Fabricators . | . . . . . . . . . . . . . . . . . . Repair Stations . | . . . . . . . . . . . . . . . . . . Recycling Units . | . . . . . . . . . . . . . . . . . . Scanalyzers . | . . . . . . . . . . . . . . . . . . Garrison Access . | . . . . . . . . . . . . . . . . . . Data Cores Recovered . | . . . . . . . . . . . . . . . . . . Used . | . . . . . . . . . . . . . . . . . . Hacking Detections 28 | . 3 . . . 4 3 . . . . 11 1 2 2 . . 2 Full Trace Events 11 | . 1 . . . 1 . . . . . 5 1 1 . . . 2 Feedback Events . | . . . . . . . . . . . . . . . . . . Feedback Blocked . | . . . . . . . . . . . . . . . . . . Robot Schematics Acquired 6 | . . . . . . . . . 6 . . . . . . . . Robots Built 3 | . . . . . . 3 . . . . . . . . . . . Authchips . | . . . . . . . . . . . . . . . . . . Time 67 | . . . . . . 67 . . . . . . . . . . . Total Robot Build Rating 12 | . . . . . . 12 . . . . . . . . . . . Part Schematics Acquired 11 | . . . . . . 1 . . 9 . 1 . . . . . . Parts Built 6 | . . . . . . . . . . . 4 . . . . . 2 Authchips . | . . . . . . . . . . . . . . . . . . Time 255 | . . . . . . . . . . . 202 . . . . . 53 Total Part Build Rating 31 | . . . . . . . . . . . 19 . . . . . 12 Parts Repaired 1 | . . . . . . . . . . . 1 . . . . . . Time 50 | . . . . . . . . . . . 50 . . . . . . Parts Recycled . | . . . . . . . . . . . . . . . . . . Recycled Matter . | . . . . . . . . . . . . . . . . . . Retrieved Matter . | . . . . . . . . . . . . . . . . . . Retrieved Components . | . . . . . . . . . . . . . . . . . . Parts Scanalyzed 4 | . . . . . 1 1 . . . . 2 . . . . . . Part Schematics Acquired 2 | . . . . . . 1 . . . . 1 . . . . . . Parts Damaged 2 | . . . . . 1 . . . . . 1 . . . . . . Bothacking | -11 -10 -10 -10 -9 -8 -7 -7 -7 -7 -6 -6 -5 -5 -5 -5 -5 -4 ------------ Run | Yrd Mat Min Exi Min Mat Fac Low Low Dat Pro Fac Fac Ext Cet Arc Hub Fac Used RIF Installer . | . . . . . . . . . . . . . . . . . . Robots Hacked . | . . . . . . . . . . . . . . . . . . Non-combat . | . . . . . . . . . . . . . . . . . . Combat . | . . . . . . . . . . . . . . . . . . Robot Hacks Applied . | . . . . . . . . . . . . . . . . . . Relay Couplers Released 6 | . . . . . . 4 . . . . . . . . . . 2 Machine Destruction 2 | . . . . . . . . . . . . . . . . . 2 Programmers 4 | . . . . . . 4 . . . . . . . . . . . Fabnet Peak Effective % . | . . . . . . . . . . . . . . . . . . Robots Rewired 16 | . . . . . . . . . . 2 . . 14 . . . . Allies Hacked 2 | . . . . . . . . . . . . . 2 . . . . Hacks Repelled . | . . . . . . . . . . . . . . . . . . Allies | -11 -10 -10 -10 -9 -8 -7 -7 -7 -7 -6 -6 -5 -5 -5 -5 -5 -4 -------- Run | Yrd Mat Min Exi Min Mat Fac Low Low Dat Pro Fac Fac Ext Cet Arc Hub Fac Total Allies 25 | . . 3 . . . 3 . . . 2 . . 17 . . . . Largest Group 10 | . . 3 3 3 . 3 . . . 2 2 . 10 4 . . . Highest-Rated Group 251 | . . 40 40 40 . 60 . . . 58 58 . 251 99 . . . Highest-Rated Ally 39 | . . 16 16 16 . 20 . . . 29 29 . 39 39 . . . Total Orders 9 | . . . . . . . . . . 9 . . . . . . . EXPLORE 2 | . . . . . . . . . . 2 . . . . . . . RETURN 7 | . . . . . . . . . . 7 . . . . . . . Ally Attacks 389 | . . . . 29 . 1 . . . 182 16 . 59 102 . . . Total Damage 6909 | . . . . 296 . 40 . . . 3140 296 . 882 2255 . . . Kills 45 | . . . . 5 . . . . . 19 3 . 7 11 . . . Allies Corrupted . | . . . . . . . . . . . . . . . . . . Allies Melted 2 | . . . . . . 1 . . . . . . 1 . . . . Intel | -11 -10 -10 -10 -9 -8 -7 -7 -7 -7 -6 -6 -5 -5 -5 -5 -5 -4 ------- Run | Yrd Mat Min Exi Min Mat Fac Low Low Dat Pro Fac Fac Ext Cet Arc Hub Fac Active Infowar (turns) 6934 | 165 1023 716 383 . . . . . . . 4151 496 . . . . . Sensors 461 | . . 78 383 . . . . . . . . . . . . . . Seismic 1826 | 165 1023 638 . . . . . . . . . . . . . . . Jamming 4647 | . . . . . . . . . . . 4151 496 . . . . . ECM 1 | . . . . . . . . . . . 1 . . . . . . Robot Analysis Total . | . . . . . . . . . . . . . . . . . . Derelict Logs Recovered 8 | . . 1 . 1 . . 3 1 . 2 . . . . . . . Drone Launches 38 | . . . . . . . . . . 22 . . . 16 . . . Drone Recoveries 8 | . . . . . . . . . . 8 . . . . . . . Exploration | -11 -10 -10 -10 -9 -8 -7 -7 -7 -7 -6 -6 -5 -5 -5 -5 -5 -4 ------------- Run | Yrd Mat Min Exi Min Mat Fac Low Low Dat Pro Fac Fac Ext Cet Arc Hub Fac Turns Passed 23277 | 265 1023 719 905 1022 1094 1391 687 972 99 1713 4358 940 3536 1282 1599 405 1267 Spaces Moved 12240 | 124 518 433 598 579 424 781 465 696 77 1066 2221 561 2104 600 349 157 487 Core 114 | 20 . . . . 1 . . . . 4 . . . . . . 89 Treads 2600 | 104 518 433 234 . 6 . . . . . . . . 401 349 157 398 Legs 689 | . . . . . . . . . . 26 . . 650 13 . . . Wheels 8837 | . . . 364 579 417 781 465 696 77 1036 2221 561 1454 186 . . . Hover . | . . . . . . . . . . . . . . . . . . Flight . | . . . . . . . . . . . . . . . . . . Fastest Speed 50 | 50 160 160 95 155 140 130 130 130 130 50 130 115 115 120 160 160 50 Average Speed 139 | 149 160 160 148 155 178 135 130 130 130 137 141 115 116 165 160 160 139 Slowest Speed 1350 | 200 160 160 160 155 900 160 130 130 130 1350 215 115 190 240 160 160 160 Overloaded Moves . | . . . . . . . . . . . . . . . . . . Propulsion Burnouts . | . . . . . . . . . . . . . . . . . . Robots Hopped . | . . . . . . . . . . . . . . . . . . Potential Cave-ins 7 | . . . . . . . . . . . . 7 . . . . . Cave-ins Triggered 1 | . . . . . . . . . . . . 1 . . . . . Exploration Rate (%) 59 | 6 68 92 71 85 36 28 71 87 68 98 49 15 97 81 97 16 13 Regions Visited 17 Branch Regions 11 Pre-discovered Areas 3 | . . . 1 1 . . . . 1 . . . . . . . . Known Exits Taken 5 | . . . . . 1 1 1 . . . 1 1 . . . . . Unknown Exits Taken 12 | 1 1 1 1 1 . . . 1 1 1 . . 1 1 1 1 . Scrap Searched 12 | . . 3 . 1 . . 2 4 . 2 . . . . . . . Spaces Dug 44 | . . . . . 4 9 . . . . 22 3 . 1 5 . . Terrain Destroyed 371 | . 40 . . 1 39 16 . 43 . 1 98 71 1 16 10 10 25 Melee 20 | . . . . . . . . . . . 17 3 . . . . . Projectile 133 | . . . . 1 39 16 . 2 . 1 8 4 1 16 10 10 25 AOE 218 | . 40 . . . . . . 41 . . 73 64 . . . . . Terrain Rammed . | . . . . . . . . . . . . . . . . . . Walls Destroyed . | . . . . . . . . . . . . . . . . . . Machines Disabled . | . . . . . . . . . . . . . . . . . . Actions | -11 -10 -10 -10 -9 -8 -7 -7 -7 -7 -6 -6 -5 -5 -5 -5 -5 -4 --------- Run | Yrd Mat Min Exi Min Mat Fac Low Low Dat Pro Fac Fac Ext Cet Arc Hub Fac Total 17241 | 177 660 460 619 680 646 999 512 725 76 1267 3229 767 3094 833 1292 275 930 Wait 3581 | 24 87 20 9 86 111 109 24 3 . 116 761 127 680 144 876 100 304 Move 12222 | 123 517 432 597 578 423 780 464 695 76 1065 2220 559 2103 599 348 156 487 Hop . | . . . . . . . . . . . . . . . . . . Pick Up 186 | 9 11 . 5 4 12 11 2 4 . 16 32 10 24 18 3 . 25 Fast Attach 75 | 3 1 3 . . 12 8 . . . 6 13 6 19 . 3 1 . Attach 93 | 4 1 . 3 . 3 4 3 3 . 12 9 10 8 11 . . 22 Detach 6 | . . . . . 1 1 . . . . 1 . 1 2 . . . Swap 119 | . 5 1 1 . 6 10 1 2 . 3 33 7 25 8 5 1 11 Drop 197 | 1 9 4 4 . 19 18 2 1 . 4 47 4 44 15 9 1 15 Fire 596 | 13 28 . . 12 59 58 16 17 . 27 94 40 67 36 48 16 65 Melee 23 | . . . . . . . . . . . 19 3 . . . . 1 Ram . | . . . . . . . . . . . . . . . . . . Kick . | . . . . . . . . . . . . . . . . . . Crush 1 | . 1 . . . . . . . . . . . . . . . . Escape Stasis 9 | . . . . . . . . . . . . 1 8 . . . . Rewire 133 | . . . . . . . . . . 18 . . 115 . . . . Trap . | . . . . . . . . . . . . . . . . . . Miscellaneous . | . . . . . . . . . . . . . . . . . . Route ------- -11/Scrapyard -10/Materials (discovered 4 exits: [*Mat] / [*Min x2] / [*Sub]) -10/Mines (discovered 2 exits: [*Mat] / *Exi) -10/Exiles -9/Mines (discovered 2 exits: *Mat x2) -8/Materials (discovered 3 exits: *Fac x3) -7/Factory (discovered 2 exits: *Low x2) -7/Lower Caves -7/Lower Caves (discovered 2 exits: *Fac / *Dat) -7/Data Miner -6/Proximity Caves -6/Factory (discovered 4 exits: *Fac x2 / Low x2) -5/Factory (discovered 2 exits: *Ext x2) -5/Extension (discovered 3 exits: *Fac x2 / *Cet) -5/Cetus (discovered 2 exits: *Fac / *Arc) -5/Archives (discovered 3 exits: *Fac / *Hub x2) -5/Hub_04(d) -4/Factory (discovered 4 exits: Res x4) History --------- Turn | Location | Event 9 | -11/Scrapyard | Discovered new exit (range 16) 266 | -11/Scrapyard | Entered Materials 305 | -10/Materials | Build established: Mutant 491 | -10/Materials | Discovered new exit (range 10) 530 | -10/Materials | Discovered new exit (range 15) 692 | -10/Materials | Discovered new exit (range 5) 706 | -10/Materials | Discovered new exit (range 15) 766 | -10/Materials | Derelicts attacked the area 915 | -10/Materials | Core integrity fell below 50% 915 | -10/Materials | Core integrity fell below 20% 1289 | -10/Materials | Entered Mines 1333 | -10/Mines | Discovered new exit (range 16) 1649 | -10/Mines | Assisted by bots powering up and referring to "LRC-V3" 1691 | -10/Mines | A weapon hastily lodged in a ceiling crevice suddenly fell to the ground 1907 | -10/Mines | Learned location of 1 exit from Materials 1923 | -10/Mines | Found a damaged Exp. Sensor Array with a note attached 1927 | -10/Mines | Found Prototype Device 1927 | -10/Mines | Identified Exp. Sensor Array 1980 | -10/Mines | Deemed a non-threat by the Exiles lab entrance 1980 | -10/Mines | Discovered new exit (range 5) 2008 | -10/Mines | Entered Exiles 2008 | -10/Exiles | Accompanied by 3 allies 2052 | -10/Exiles | Met 8R-AWN 2074 | -10/Exiles | Met EX-HEX 2138 | -10/Exiles | Met EX-DEC 2144 | -10/Exiles | Learned location of Zion (-6) 2170 | -10/Exiles | Met EX-BIN 2336 | -10/Exiles | Aligned with FarCom system 2338 | -10/Exiles | Given EX-Vault access code 2375 | -10/Exiles | Opened EX-Vault 2405 | -10/Exiles | Warned to stay clear of 0b10 Research branches 2582 | -10/Exiles | Found Army-in-a-Box 2887 | -10/Exiles | Discovered new exit (range 12) 2913 | -10/Exiles | Left Exiles lab with Army-in-a-Box 2913 | -10/Exiles | Entered Mines 2913 | -9/Mines | Accompanied by 3 allies 3144 | -9/Mines | Learned location of 2 exits from Materials 3268 | -9/Mines | Discovered new exit (range 15) 3815 | -9/Mines | Learned location of Storage (-9) 3818 | -9/Mines | Discovered new exit (range 8) 3858 | -9/Mines | Found a Scrap Suit stashed away for nefarious purposes 3861 | -9/Mines | Found Scrap Suit 3935 | -9/Mines | Entered Materials 3935 | -8/Materials | Evolved 4 slots: Utility x4 3936 | -8/Materials | Identified exit to Factory 5029 | -8/Materials | Entered Factory 5029 | -7/Factory | Evolved 2 slots: Power x1, Weapon x1 6076 | -7/Factory | Fabricated B-48 Gladiator? 6272 | -7/Factory | Discovered new exit (range 16) 6348 | -7/Factory | Identified exit to Lower Caves 6370 | -7/Factory | Discovered exit to Lower Caves (range 10) 6420 | -7/Factory | Entered Lower Caves 6446 | -7/Lower Caves | Build established: Gunner 6446 | -7/Lower Caves | Lost 3 allies 6496 | -7/Lower Caves | Learned Factory terminal intel 6554 | -7/Lower Caves | Spotted B-75 Beast 6569 | -7/Lower Caves | Destroyed B-75 Beast 6619 | -7/Lower Caves | Identified exit to Lower Caves 6630 | -7/Lower Caves | Lost 3 parts (1p2u) 6632 | -7/Lower Caves | Learned Factory stockpile data 7107 | -7/Lower Caves | Entered another Lower Caves area 7131 | -7/Lower Caves | Discovered new exit (range 6) 7296 | -7/Lower Caves | Spotted B-75 Beast 7327 | -7/Lower Caves | Destroyed B-75 Beast 7600 | -7/Lower Caves | Discovered new exit (range 10) 7661 | -7/Lower Caves | Build established: Mutant 8005 | -7/Lower Caves | Build established: Gunner 8079 | -7/Lower Caves | Entered Data Miner 8079 | -7/Data Miner | Discovered new exit (range 6) 8104 | -7/Data Miner | Met Data Miner 8126 | -7/Data Miner | Learned location of Section 7 (-2) 8126 | -7/Data Miner | Acquired the access code to Warlord's prototype stash 8148 | -7/Data Miner | Received God Mode back door access code from Data Miner 8178 | -7/Data Miner | Entered Proximity Caves 8181 | -6/Proximity Caves | Spotter reported a threat 8502 | -6/Proximity Caves | Released all parts (9) 8505 | -6/Proximity Caves | Attracted the attention of an 0b10 outpost 8527 | -6/Proximity Caves | Lost 5 parts (1p1n1u2w) 8660 | -6/Proximity Caves | Lost 11 allies 8668 | -6/Proximity Caves | System corruption reached 10% 8802 | -6/Proximity Caves | Build established: Mutant 8873 | -6/Proximity Caves | Spotted B-75 Beast 8893 | -6/Proximity Caves | Allies destroyed B-75 Beast 9143 | -6/Proximity Caves | Discovered new exit (range 14) 9282 | -6/Proximity Caves | Learned location of 2 exits from Factory 9473 | -6/Proximity Caves | Build established: Scavenger-Mutant 9891 | -6/Proximity Caves | Entered Factory 9891 | -6/Factory | Accompanied by 2 allies 9891 | -6/Factory | Evolved 2 slots: Utility x2 9892 | -6/Factory | Identified exit to Factory 9894 | -6/Factory | Loaded intel: 26 terminal locations 9943 | -6/Factory | Build established: Scavenger-Tank 10027 | -6/Factory | Identified exit to DSF 10038 | -6/Factory | Incoming investigation squad redirected 10055 | -6/Factory | Repaired Adv. Heat Sink 10094 | -6/Factory | Fabricated Lgt. Regenerative Plating (x1) 10937 | -6/Factory | Build established: Scavenger-Gunner 11136 | -6/Factory | Identified exit to Lower Caves 11219 | -6/Factory | Cargo convoy interrupted 11247 | -6/Factory | Incoming assault squad redirected 11808 | -6/Factory | Found Prototype Launcher 11808 | -6/Factory | Identified Scatter Rocket Array 12085 | -6/Factory | Fabricated Arm. Huge Wheel? 12407 | -6/Factory | Build established: Scavenger-Mutant 13399 | -6/Factory | Build established: Gunner 13534 | -6/Factory | Fabricated Combat Drone Bay? 13741 | -6/Factory | First assault squad dispatched 14249 | -6/Factory | Entered another Factory area 14249 | -5/Factory | Evolved 2 slots: Propulsion x2 14250 | -5/Factory | Identified exit to Extension 14710 | -5/Factory | Lost 4 parts (2p2w) 14968 | -5/Factory | Crushed by falling debris 14969 | -5/Factory | System corruption reached 10% 14999 | -5/Factory | Lost 4 parts (2u2w) 15165 | -5/Factory | Discovered exit to Extension (range 8) 15168 | -5/Factory | Garrison activated, responded to threat 15189 | -5/Factory | Entered Extension 15314 | -5/Extension | Build established: Scavenger-Gunner 15331 | -5/Extension | Rescued a captive Derelict 15964 | -5/Extension | Disrupted transfer network 15973 | -5/Extension | Lost 3 allies 16075 | -5/Extension | Energy Cycler disabled 16076 | -5/Extension | Rescued a captive Derelict 16076 | -5/Extension | Rescued a captive Derelict 16078 | -5/Extension | Rescued a captive Derelict 16081 | -5/Extension | Rescued a captive Derelict 16086 | -5/Extension | Rescued a captive Derelict 16091 | -5/Extension | Rescued a captive Derelict 16339 | -5/Extension | Warlord forces began an assault 16435 | -5/Extension | Spotted B-75 Beast 16453 | -5/Extension | Discovered new exit (range 15) 16491 | -5/Extension | Found Prototype Protection 16491 | -5/Extension | Identified Med. Regenerative Plating 16896 | -5/Extension | Discovered new exit (range 10) 16897 | -5/Extension | Discovered new exit (range 6) 16924 | -5/Extension | Disrupted transfer network 16966 | -5/Extension | Lost 3 allies 18644 | -5/Extension | Lost 3 allies 18725 | -5/Extension | Entered Cetus 18725 | -5/Cetus | Accompanied by 4 allies 18741 | -5/Cetus | Spotted Cetus Guard 18742 | -5/Cetus | Spotted Cetus Guard 18746 | -5/Cetus | Spotted Cetus Guard 18746 | -5/Cetus | Spotted Cetus Guard 18768 | -5/Cetus | Allies destroyed Cetus Guard 18771 | -5/Cetus | Allies destroyed Cetus Guard 18776 | -5/Cetus | Allies destroyed Cetus Guard 18779 | -5/Cetus | Allies destroyed Cetus Guard 18822 | -5/Cetus | Lost 11 allies 18884 | -5/Cetus | Discovered new exit (range 17) 19095 | -5/Cetus | Spotted Cetus Guard 19095 | -5/Cetus | Spotted Cetus Guard 19100 | -5/Cetus | Destroyed Cetus Guard 19104 | -5/Cetus | Spotted Cetus Guard 19104 | -5/Cetus | Spotted Cetus Guard 19111 | -5/Cetus | Destroyed Cetus Guard 19112 | -5/Cetus | Allies destroyed Cetus Guard 19117 | -5/Cetus | Destroyed Cetus Guard 19129 | -5/Cetus | Discovered new exit (range 16) 19139 | -5/Cetus | Met Revision 17 19143 | -5/Cetus | Lost 6 allies 19280 | -5/Cetus | Build established: Scavenger-Tank 19475 | -5/Cetus | Security sweep announced 20007 | -5/Cetus | Entered Archives 20152 | -5/Archives | Core integrity fell below 50% 20389 | -5/Archives | Discovered new exit (range 15) 20409 | -5/Archives | Discovered new exit (range 15) 20423 | -5/Archives | Discovered new exit (range 15) 20593 | -5/Archives | Unable to access archive contents 20609 | -5/Archives | Unable to access archive contents 20635 | -5/Archives | Unable to access archive contents 21606 | -5/Archives | Entered Hub_04(d) 21812 | -5/Hub_04(d) | Discovered new exit (range 3) 22011 | -5/Hub_04(d) | Entered Factory 22011 | -4/Factory | Evolved 2 slots: Utility x2 22011 | -4/Factory | Garrison activated, responded to threat 22057 | -4/Factory | Incoming assault squad redirected 22294 | -4/Factory | Incoming assault squad redirected 22353 | -4/Factory | Lost 7 parts (1p1n3u2w) 22738 | -4/Factory | Fabricated Lrn. Proton Cannon (x2) 22820 | -4/Factory | Identified exit to Research 23229 | -4/Factory | Released all parts (11) 23240 | -4/Factory | Core integrity fell below 50% 23252 | -4/Factory | Core integrity fell below 20% 23259 | -4/Factory | Lost 4 parts (1n3u) 23278 | -4/Factory | Destroyed by G-67 Veteran with Plasma Rifle Last Messages --------------- 23251_ O-24 Administrator: "IFF HANDSHAKE FAILED. SECURING TERMINAL." 23253_ Slug penetrates Wall. 23254_ ALERT: Hostiles spotted, dispatching reinforcements to Terminal F009. 23254_ K-01 Serf cleans the Fusion Modulator. 23255_ Slug penetrates Wall. 23256_ System corrupted: Component data lost. 23258_ Penetrated by Slug. 23261_ W-44 Eye sends out distress signal. 23261_ Slug penetrates K-01 Serf. 23263_ Slug penetrates Wall. 23266_ Penetrated by Slug. 23268_ Sneak attack on R-10 Processor. 23268_ Destroyed Com. Wheel. 23268_ R-10 Processor system corrupted by crushing effect. 23268_ R-10 Processor knocked back. 23269_ R-10 Processor system terminally corrupted. 23269_ Com. Wheel fried. 23269_ Imp. Ion Engine fried. 23271_ Acquired 148 matter. Map ----- +----------------------------------------------------+ | ?????????????????????????????????????????????????? | | ?????????????????????????????????????????????????? | | ?????????????????????????????????????????????????? | | ?????????????????????????????????????????????????? | | ?????????????????????????????????????????????????? | | ?????????????????????????????????????????????????? | | ?????????????????????????????????????????????????? | | ?????????????????????????????????????????????????? | | ????????????????????????Y????????????????????????? | | ?????????????????????????????????????????????????? | | ?????????????????????????????????????????????????? | | ?????????????????????????????????????????????????? | | ?????????????????????????????????????????????????? | | ???????????????? ??????????????????????????????? | | ??????????????? #######???????????????????????? | | ???????????????? ???????????????????????? | | ????????????????? ???????????????????????? | | ?????????????????? #??????????????????????? | | ??????????????????? #??????????????????????? | | ???????????????????? #??????????????????????? | | ????????????????????# #??????????????????????? | | ????????????????????#g #??????????????????????? | | ????????????????????# g #??????????????????????? | | ????????????????????#g +??????????????????????? | | ????????????????????# #??????????????????????? | | ????????????????????# l @#??????????????????????? | | ????????????????????# #??????????????????????? | | ????????????????????# #??????????????????????? | | ????????????????????# #?????????????????????? | | ????????????????????# #????????????????????? | | ????????????????????# #????????????######### | | ????????????????????# ############## | | ????????????????????# | | ????????????????????# ###########+##Y | | ????????????????????###+###???????? # | | ????????????????????????????????? # | | ???????????????????????????????# # ####### | | ???????????????????????????????# # #?????? | | ???????????????????????????????######### ###???? | | ?????????????????????????????????????# #???? | | ?????????????????????????????????????# #???? | | ?????????????????????????????????????# #???? | | ?????????????????????????????????????+ #???? | | ?????????????????????????????????????# ! #???? | | ?????????????????????????????????????# #???? | | ?????????????????????????????????????# #???? | | ?????????????????????????????????????## ###### | | ??????????????????????????????????????# # | | ??????????????????????????????????????# # ! " | | ??????????????????????????????????????+ / " | +----------------------------------------------------+ Best States ------------- Heat Dissipation 139 Energy Generation 45 Energy Capacity 990 Matter Stores 300 Matter Capacity 300 Sight Range 16 Robot Scan Range 20 Terrain Scan Density 10 ECM Strength 2 Jamming Range 12 Base Temperature (-) 100 Armor Coverage 2100 Resistance: TH 15 Utility Shielding 66 Weapon Cycling 20 Evasion (%) 55 Targeting Accuracy 8 Melee Accuracy 6 Target Analysis 6 Core Analysis 6 Armor Integrity Analysis 30 Recoil Reduction 4 Salvage Targeting 4 Offensive Hacking 12 Defensive Hacking 14 Item Schematics ----------------- Arm. Huge Wheel | -7/Factory | Scanalyzed Combat Drone Bay | -7/Data Miner | Free Lgt. Regenerative Plating | -7/Data Miner | Free Multireflex Exoskeleton | -7/Data Miner | Free Exp. Power Shielding | -7/Data Miner | Free Force Rifle | -7/Data Miner | Free Arm. Medium Treads | -7/Data Miner | Free Imp. Shock Absorption System | -7/Data Miner | Free Lrn. Proton Cannon | -7/Data Miner | Free Impulse Thruster | -7/Data Miner | Free Imp. Heavy Laser | -6/Factory | Scanalyzed Robot Schematics ------------------ H-66 Slayer | -7/Data Miner | Free E-15 Imp | -7/Data Miner | Free W-25 Informer | -7/Data Miner | Free R-10 Processor | -7/Data Miner | Free S-27 Virus | -7/Data Miner | Free Y-54 Guardian | -7/Data Miner | Free Fabricated ------------ B-48 Gladiator | x3 | -7/Factory | Preloaded Lgt. Regenerative Plating | x1 | -6/Factory Arm. Huge Wheel | x2 | -6/Factory Combat Drone Bay | x1 | -6/Factory Lrn. Proton Cannon | x2 | -4/Factory Repaired ---------- Adv. Heat Sink | 32% | -6/Factory Alien Tech Used ----------------- None Achievements -------------- None Challenges ------------ None Game ------ Seed CouplerBiometalSheargun Manual? 0 Play Time 03:14:10 Cumulative 125.1 hours Start 2025.08.08 @ 19:59:40 End 2025.08.10 @ 10:38:21 Sessions 7 Manual Loads 0 Difficulty Rogue Special Mode None Game No. 184 Rogue 184 Adventurer 0 Explorer 0 Win Type - Total 1 Types 1/0/0/0/0/0/0/0/0/0 Lore% 68 Gallery% 60 Achievement% 52 Wizard Run 0 Options --------- Layout 0 ASCII 0 Keyboard 0 Movement Mouse Keybinds 0 Fullscreen 1 Font 16/SmallcapsGlow Map View 75x55 Zoom Use 0% Tactical HUD 1 Map Filters NONE Filters NONE Steam 1 RUN: 691e73d6-9dfc-4802-b44b-2331ff000044